bitfinex-derivatives/quotes_SOLF0:USTF0_20241222
["timestamp","ask_amount","ask_price","bid_price","bid_amount"]
[1734845073280,24.52201087,179.61,179.47,4.22]
[1734845073875,2.7862,179.57,179.5,2.7873]
[1734845074079,24.52201087,179.61,179.5,2.7873]
[1734845074272,24.52201087,179.61,179.47,4.22]
[1734845074478,2.7859,179.6,179.52,2.7869]
[1734845074678,4.22,179.62,179.52,4.22]
[1734845075080,2.7857,179.6,179.53,2.7867]
[1734845075377,2.7857,179.6,179.52,4.22]
[1734845075576,4.22,179.62,179.52,4.22]
[1734845075776,24.52201087,179.64,179.52,4.22]
[1734845075978,24.52201087,179.73,179.52,28.74201087]
[1734845075979,24.52201087,179.67,179.52,28.74201087]
[1734845076171,24.52201087,179.7,179.52,4.22]
[1734845076378,24.52201087,179.7,179.55,24.52201087]
[1734845076579,24.52201087,179.7,179.56,5.0651]
[1734845076780,28.74201087,179.73,179.57,4.22]
[1734845077488,24.52201087,179.7,179.57,4.22]
[1734845077681,24.52201087,179.7,179.52,24.52201087]
[1734845077881,24.52201087,179.67,179.53,4.22]
[1734845078082,28.74201087,179.67,179.53,4.22]
[1734845078895,24.52201087,179.67,179.53,4.22]
[1734845079092,4.22,179.69,179.53,4.22]
[1734845080195,4.22,179.69,179.55,24.52201087]
[1734845080396,24.52201087,179.7,179.56,1.6858]
[1734845080597,24.52201087,179.7,179.57,1.7691]
[1734845080798,2.7845,179.68,179.58,4.22]
[1734845081099,24.52201087,179.73,179.58,28.74201087]
[1734845081396,2.7839,179.72,179.58,28.74201087]
[1734845081591,24.52201087,179.76,179.61,24.52201087]
[1734845081793,24.52201087,179.79,179.64,24.52201087]
[1734845082095,2.7829,179.78,179.72,2.7837]
[1734845082803,24.52201087,179.82,179.7,4.22]
[1734845082989,28.74201087,179.85,179.7,4.22]
[1734845083188,24.52201087,179.85,179.7,4.22]
[1734845083695,24.52201087,179.85,179.71,4.22]
[1734845083892,2.7828,179.79,179.73,2.7837]
[1734845084291,24.52201087,179.85,179.72,4.22]
[1734845084892,2.7826,179.81,179.74,2.7834]
[1734845085195,2.7826,179.81,179.72,4.22]
[1734845085401,24.52201087,179.85,179.72,4.22]
[1734845085596,24.52201087,179.85,179.74,2.7835]
[1734845085993,24.52201087,179.85,179.72,4.22]
[1734845085994,2.7831,179.77,179.72,4.22]
[1734845086200,24.52201087,179.82,179.71,4.22]
[1734845086399,24.52201087,179.82,179.68,3.4428]
[1734845086598,24.52201087,179.84,179.7,24.52201087]
[1734845086801,24.52201087,179.87,179.7,24.52201087]
[1734845087598,24.52201087,179.84,179.71,4.22]
[1734845087799,24.52201087,179.84,179.72,4.22]
[1734845088396,2.7823,179.83,179.72,4.22]
[1734845088597,2.7823,179.83,179.73,24.52201087]
[1734845088796,24.52201087,179.9,179.73,24.52201087]
[1734845089097,24.52201087,179.9,179.76,24.52201087]
[1734845089299,24.52201087,179.9,179.77,5.8035]
[1734845089599,2.7813,179.89,179.83,2.7821]
[1734845089800,2.7813,179.89,179.82,4.06]
[1734845090302,2.7813,179.89,179.82,6.8422]
[1734845091397,2.7817,179.87,179.8,2.7826]
[1734845091597,24.52201087,179.9,179.79,4.06]
[1734845091891,2.7813,179.89,179.81,2.7825]
[1734845092095,2.7813,179.89,179.79,4.06]
[1734845092900,2.7813,179.89,179.82,2.7823]
[1734845093100,24.52201087,179.95,179.79,28.58201087]
[1734845093296,24.52201087,179.95,179.86,2.7816]
[1734845094404,2.7808,179.92,179.86,2.7816]
[1734845095103,24.52201087,180.04,179.88,24.52201087]
[1734845095300,24.52201087,180.04,179.89,7.4074]
[1734845096203,24.52201087,180.04,179.89,3.3474]
[1734845096500,24.52201087,180.04,179.9,4.06]
[1734845096901,24.52201087,180.07,179.91,24.52201087]
[1734845097094,2.7795,180.0,179.95,2.7803]
[1734845097301,28.58201087,180.04,179.91,4.06]
[1734845097600,24.52201087,180.01,179.85,26.29861087]
[1734845097803,2.7806,179.93,179.85,26.29861087]
[1734845098004,24.52201087,180.01,179.86,4.06]
[1734845098208,2.7803,179.96,179.89,2.7812]
[1734845098702,24.52201087,180.01,179.89,2.7812]
[1734845099601,2.7799,179.98,179.89,2.7812]
[1734845099908,24.52201087,180.01,179.91,2.7809]
[1734845100102,28.58201087,180.04,179.91,4.06]
[1734845100303,24.52201087,180.01,179.89,2.7811]
[1734845100499,24.52201087,180.01,179.9,4.06]
[1734845100897,24.52201087,180.01,179.9,6.8411]
[1734845101197,24.52201087,180.04,179.9,4.06]
[1734845101397,24.52201087,180.07,179.9,4.06]
[1734845101706,0.9755959,180.06,179.94,2.7803]
[1734845102104,2.7804,179.95,179.89,2.7812]
[1734845102399,4.06,180.01,179.88,4.06]
[1734845102606,2.7803,179.95,179.88,6.8413]
[1734845102900,2.7803,179.95,179.88,4.06]
[1734845103105,2.7803,179.95,179.89,2.7812]
[1734845104505,2.7801,179.97,179.91,2.7808]
[1734845104999,2.7801,179.97,179.88,4.06]
[1734845105199,4.06,180.04,179.89,24.52201087]
[1734845105399,24.52201087,180.07,179.92,24.52201087]
[1734845105601,24.52201087,180.1,179.95,24.52201087]
[1734845105801,2.7787,180.06,179.95,24.52201087]
[1734845106202,24.52201087,180.1,179.95,24.52201087]
[1734845106505,2.7794,180.02,179.95,24.52201087]
[1734845106707,2.7794,180.02,179.96,4.06]
[1734845106904,24.52201087,180.1,179.96,4.06]
[1734845107208,0.97590204,180.09,179.96,6.8401]
[1734845107804,2.7791,180.03,179.97,2.78]
[1734845108003,24.52201087,180.1,179.96,4.06]
[1734845108208,24.52201087,180.1,179.93,7.4757]
[1734845108209,2.78,179.98,179.93,7.4757]
[1734845108410,4.06,180.06,179.93,7.4757]
[1734845109902,2.7794,180.02,179.96,2.7801]
[1734845110102,4.06,180.06,179.93,9.1135]
[1734845110706,24.52201087,180.09,179.95,24.52201087]
[1734845111103,2.7788,180.05,179.95,24.52201087]
[1734845111310,24.52201087,180.09,179.98,2.7798]
[1734845111503,24.52201087,180.09,179.98,6.8398]
[1734845111709,2.779,180.04,179.98,6.8398]
[1734845112417,2.7788,180.06,180.0,2.7794]
[1734845114412,2.7788,180.06,180.01,2.7794]
[1734845114612,24.52201087,180.15,179.98,4.06]
[1734845114911,28.58201087,180.18,180.06,2.7786]
[1734845115110,28.58201087,180.18,180.06,4.06]
[1734845115706,24.52201087,180.15,180.02,9.1703]
[1734845116009,24.52201087,180.15,180.02,7.403]
[1734845116203,2.7781,180.1,180.02,7.403]
[1734845116606,28.58201087,180.18,180.02,7.403]
[1734845117014,28.58201087,180.18,180.03,1.7551]
[1734845117209,28.58201087,180.18,180.06,2.7786]
[1734845117410,2.7778,180.12,180.06,2.7786]
[1734845118010,28.58201087,180.18,180.03,1.7551]
[1734845118207,28.36201087,180.18,180.08,2.7783]
[1734845118613,2.7774,180.14,180.08,2.7783]
[1734845118810,28.36201087,180.18,180.07,6.6184]
[1734845119217,2.7777,180.13,180.07,6.6184]
[1734845120016,3.84,180.18,180.07,3.84]
[1734845120214,28.36201087,180.24,180.07,28.36201087]
[1734845120614,2.7766,180.19,180.12,2.7777]
[1734845120912,2.7766,180.19,180.12,3.84]
[1734845121620,28.36201087,180.24,180.04,24.52201087]
[1734845121621,24.52201087,180.21,180.04,24.52201087]
[1734845121913,24.52201087,180.18,180.05,3.84]
[1734845122118,3.84,180.17,180.05,3.84]
[1734845122313,41.21201087,180.15,179.99,3.84]
[1734845122515,24.52201087,180.09,179.94,3.84]
[1734845122716,3.84,180.08,179.96,2.78]
[1734845122909,24.52201087,180.06,179.92,9.0308]
[1734845123215,24.52201087,180.03,179.92,3.4438]
[1734845123418,24.52201087,180.03,179.88,3.84]
[1734845123419,3.84,180.02,179.88,3.84]
[1734845123620,2.7806,179.94,179.88,3.84]
[1734845124117,2.7808,179.92,179.87,1.705]
[1734845124314,28.36201087,179.97,179.86,1.7078]
[1734845125117,28.36201087,179.97,179.79,3.84]
[1734845125118,24.52201087,179.94,179.79,3.84]
[1734845125319,41.21201087,179.94,179.78,5.1598]
[1734845125512,24.52201087,179.91,179.78,5.1598]
[1734845125718,3.84,179.9,179.78,3.4128]
[1734845126015,24.52201087,179.88,179.78,3.4128]
[1734845126220,2.7821,179.84,179.78,3.4128]
[1734845126420,24.52201087,179.88,179.78,3.4128]
[1734845126914,24.52201087,179.88,179.73,3.84]
[1734845127922,3.84,179.91,179.76,24.52201087]
[1734845128119,3.84,179.91,179.77,3.4013]
[1734845128321,28.36201087,179.91,179.77,3.4013]
[1734845128719,2.7819,179.85,179.77,6.1843]
[1734845128919,3.84,179.85,179.77,3.4013]
[1734845129320,3.84,179.85,179.73,24.52201087]
[1734845129525,24.52201087,179.74,179.59,60.43129908]
[1734845129725,24.52201087,179.7,179.59,60.43129908]
[1734845130020,24.52201087,179.73,179.59,60.43129908]
[1734845130223,3.84,179.72,179.59,60.43129908]
[1734845130416,3.84,179.72,179.58,3.84]
[1734845130619,2.7844,179.69,179.58,3.84]
[1734845131621,2.7844,179.69,179.59,2.7858]
[1734845132415,3.84,179.7,179.61,2.7855]
[1734845132619,3.84,179.74,179.58,3.84]
[1734845133224,2.784,179.72,179.63,2.7852]
[1734845133828,2.7841,179.71,179.61,2.7855]
[1734845134122,26.52673239,179.65,179.4,60.43129908]
[1734845134427,26.52673239,179.6,179.41,1.02410094]
[1734845134626,2.7872,179.51,179.42,2.7885]
[1734845135521,3.84,179.52,179.42,2.7885]
[1734845136327,3.84,179.52,179.4,2.7888]
[1734845136625,3.84,179.52,179.38,5.1653]
[1734845137024,3.84,179.52,179.43,2.7882]
[1734845137625,6.627,179.52,179.43,2.7882]
[1734845137824,3.84,179.52,179.44,2.7882]
[1734845138128,3.84,179.52,179.38,5.1653]
[1734845138326,2.7873,179.5,179.38,5.1653]
[1734845138723,2.7873,179.5,179.41,2.7885]
[1734845138930,2.7873,179.5,179.38,5.1653]
[1734845139127,2.7875,179.49,179.4,2.7888]
[1734845139525,2.7875,179.49,179.38,5.1653]
[1734845139526,3.84,179.52,179.38,5.1653]
[1734845139830,3.84,179.52,179.41,3.84]
[1734845140526,2.7869,179.53,179.44,2.7882]
[1734845140727,3.84,179.55,179.41,3.84]
[1734845141128,2.7867,179.54,179.41,3.84]
[1734845141333,3.84,179.55,179.41,3.84]
[1734845141535,0.6334,179.59,179.41,3.84]
[1734845141729,3.84,179.55,179.41,3.84]
[1734845142330,2.7864,179.56,179.47,2.7876]
[1734845142630,3.84,179.56,179.47,2.7876]
[1734845143437,2.7865,179.55,179.47,2.7876]
[1734845145426,3.84,179.59,179.47,3.84]
[1734845145632,3.84,179.59,179.48,5.2438]
[1734845145828,3.86,179.62,179.48,5.2438]
[1734845146032,26.52673239,179.65,179.48,5.2438]
[1734845146237,3.86,179.64,179.48,5.2438]
[1734845147133,26.52673239,179.61,179.48,9.1038]
[1734845147533,26.52673239,179.61,179.48,11.8914]
[1734845148037,26.52673239,179.61,179.48,9.1038]
[1734845148232,2.7859,179.59,179.52,2.7869]
[1734845149636,26.52673239,179.61,179.48,5.2438]
[1734845149836,26.52673239,179.61,179.5,2.7872]
[1734845150042,26.52673239,179.57,179.48,1.7582]
[1734845150237,2.7867,179.54,179.48,1.7582]
[1734845150537,3.96,179.56,179.48,1.7582]
[1734845151236,2.7867,179.55,179.48,4.5458]
[1734845151438,3.96,179.56,179.48,1.7582]
[1734845151842,3.96,179.56,179.42,3.96]
[1734845153841,2.7865,179.55,179.42,3.96]
[1734845154244,2.7868,179.53,179.47,2.7876]
[1734845154542,24.42538587,179.53,179.42,3.96]
[1734845155544,24.42538587,179.59,179.43,24.42538587]
[1734845155843,24.42538587,179.59,179.44,1.6149]
[1734845156537,28.38538587,179.62,179.46,24.42538587]
[1734845156743,3.96,179.63,179.47,3.96]
[1734845157044,3.96,179.63,179.48,1.6634]
[1734845157544,2.7856,179.61,179.48,1.6634]
[1734845158645,2.7857,179.6,179.48,1.6634]
[1734845159044,2.7859,179.59,179.53,2.7867]
[1734845159240,24.42538587,179.59,179.48,1.6634]
[1734845159436,24.42538587,179.59,179.49,3.96]
[1734845159741,24.42538587,179.56,179.49,3.96]
[1734845159942,3.96,179.58,179.49,3.96]
[1734845160137,3.96,179.58,179.5,1.7576]
[1734845160337,6.746,179.58,179.53,2.7868]
[1734845160738,28.38538587,179.62,179.55,2.7864]
[1734845161045,24.42538587,179.65,179.54,3.96]
[1734845162442,24.42538587,179.68,179.55,1.6197]
[1734845162650,24.42538587,179.71,179.55,26.04508587]
[1734845163547,27.20958587,179.71,179.65,2.7849]
[1734845163741,24.42538587,179.71,179.61,3.96]
[1734845163940,24.42538587,179.74,179.62,3.4211]
[1734845164143,2.7838,179.73,179.65,2.7849]
[1734845164342,24.42538587,179.74,179.62,3.4211]
[1734845165647,3.94,179.75,179.62,3.4211]
[1734845165648,24.42538587,179.77,179.62,3.4211]
[1734845165844,24.42538587,179.8,179.64,24.42538587]
[1734845166045,24.42538587,179.8,179.65,1.7351]
[1734845166241,24.42538587,179.8,179.66,3.94]
[1734845166639,2.7832,179.77,179.7,2.784]
[1734845167347,2.7832,179.77,179.71,2.784]
[1734845167542,25.05378587,179.83,179.71,3.94]
[1734845167744,29.46858841,179.85,179.79,2.7828]
[1734845168151,27.20718587,179.86,179.79,2.7828]
[1734845168350,24.42538587,179.86,179.79,2.7828]
[1734845169450,2.7819,179.85,179.79,2.7828]
[1734845169643,2.7819,179.85,179.76,3.94]
[1734845169644,24.42538587,179.86,179.76,3.94]
[1734845169845,24.42538587,179.89,179.76,3.94]
[1734845170040,24.42538587,179.89,179.77,1.7452]
[1734845170246,28.36538587,179.92,179.86,2.7817]
[1734845170446,24.42538587,179.92,179.82,3.94]
[1734845170647,24.42538587,179.92,179.83,3.94]
[1734845170954,2.781,179.91,179.85,2.7818]
[1734845171154,24.42538587,179.92,179.85,2.7818]
[1734845171557,24.42538587,179.92,179.83,3.94]
[1734845172455,24.42538587,179.92,179.82,2.7822]
[1734845172657,24.42538587,179.92,179.77,1.7452]
[1734845172658,24.42538587,179.86,179.72,3.2511]
[1734845172964,6.722,179.85,179.78,2.7829]
[1734845173261,24.42538587,179.89,179.77,3.94]
[1734845174059,3.94,179.9,179.77,3.94]
[1734845174255,2.7814,179.88,179.82,2.7823]
[1734845174459,3.94,179.9,179.82,2.7823]
[1734845174660,26.47554267,179.93,179.77,3.94]
[1734845174858,26.47554267,179.93,179.86,2.7817]
[1734845174859,6.7208,179.93,179.86,2.7817]
[1734845175464,27.10074267,179.97,179.83,3.94]
[1734845175662,2.7804,179.95,179.88,2.7814]
[1734845176064,3.94,179.96,179.84,5.1671]
[1734845176869,2.7803,179.95,179.88,2.7814]
[1734845178669,3.94,179.96,179.75,5.1565]
[1734845178866,3.94,179.96,179.76,3.84]
[1734845179065,2.7812,179.9,179.82,2.7823]
[1734845179263,3.94,179.96,179.82,3.84]
[1734845179670,2.7815,179.88,179.81,2.7825]
[1734845179871,3.84,179.9,179.77,3.84]
[1734845180069,3.84,179.89,179.75,3.504]
[1734845180372,26.47554267,179.92,179.75,3.504]
[1734845180569,3.84,179.91,179.75,3.504]
[1734845180770,3.84,179.91,179.76,1.7627]
[1734845180969,3.84,179.91,179.82,2.7823]
[1734845180970,2.7814,179.88,179.82,2.7823]
[1734845181567,6.6211,179.91,179.79,3.84]
[1734845181869,3.84,179.91,179.79,3.84]
[1734845182069,2.7813,179.89,179.83,2.7821]
[1734845183872,3.84,179.92,179.79,3.84]
[1734845184676,27.09804267,179.96,179.79,3.84]
[1734845184677,3.84,179.94,179.79,3.84]
[1734845184870,2.781,179.91,179.85,2.7818]
[1734845185068,26.47554267,180.04,179.85,3.84]
[1734845185271,0.6238,180.01,179.86,3.3625]
[1734845185471,0.6238,180.01,179.86,5.1201]
[1734845185670,0.6238,180.01,179.86,8.9601]
[1734845185969,2.7801,179.97,179.88,2.7813]
[1734845186275,3.84,179.97,179.86,8.9601]
[1734845186977,0.6238,180.01,179.92,2.7808]
[1734845187178,0.6238,180.01,179.91,3.84]
[1734845187676,2.7797,179.99,179.92,2.7806]
[1734845189468,2.7799,179.98,179.92,2.7806]
[1734845189867,26.47554267,180.0,179.86,5.1201]
[1734845190065,2.7808,179.92,179.86,5.1201]
[1734845190269,3.84,179.97,179.86,5.1201]
[1734845190469,2.7809,179.92,179.86,3.3625]
[1734845191169,2.7809,179.92,179.86,6.144]
[1734845191378,2.7806,179.93,179.86,3.3625]
[1734845191774,3.84,179.97,179.88,2.7813]
[1734845192077,3.84,179.97,179.86,3.3625]
[1734845192580,2.7802,179.96,179.91,2.7809]
[1734845193979,2.7802,179.96,179.86,3.3625]
[1734845194178,4.4638,180.01,179.86,7.2025]
[1734845194972,2.7806,179.94,179.88,2.7813]
[1734845195172,4.4638,180.01,179.86,7.2025]
[1734845195580,2.7803,179.95,179.9,2.7811]
[1734845195871,2.7803,179.95,179.86,7.2025]
[1734845197468,2.7798,179.99,179.87,24.31065256]
[1734845197770,24.31065256,180.03,179.88,1.706]
[1734845198174,2.7797,179.99,179.94,2.7804]
[1734845198779,28.15065256,180.0,179.88,1.706]
[1734845198974,24.31065256,179.97,179.73,24.31065256]
[1734845199177,24.31065256,179.94,179.8,7.2542]
[1734845199382,24.31065256,179.91,179.8,7.2542]
[1734845199680,3.84,179.93,179.8,7.2542]
[1734845200379,2.7814,179.89,179.8,7.2542]
[1734845200877,2.7814,179.89,179.83,2.7821]
[1734845202276,3.84,179.93,179.8,3.4142]
[1734845202472,24.31065256,179.91,179.81,3.84]
[1734845202882,2.7814,179.88,179.82,2.7823]
[1734845203078,24.31065256,179.91,179.81,3.84]
[1734845203883,2.7817,179.87,179.81,6.6223]
[1734845204779,2.7814,179.88,179.83,2.7822]
[1734845205084,28.15065256,179.94,179.81,3.84]
[1734845206082,28.15065256,179.94,179.84,2.7819]
[1734845206582,3.84,179.95,179.81,3.84]
[1734845206786,3.84,179.95,179.82,24.31065256]
[1734845206981,0.6224,179.96,179.82,24.31065256]
[1734845207284,2.7808,179.92,179.82,24.31065256]
[1734845207881,2.7808,179.92,179.86,2.7816]
[1734845208379,2.7806,179.93,179.88,2.7813]
[1734845208774,24.31065256,179.94,179.8,3.4142]
[1734845209175,24.31065256,179.91,179.76,1.6605]
[1734845209380,24.31065256,179.91,179.7,93.13348925]
[1734845209381,2.7828,179.79,179.74,3.2865]
[1734845209581,2.7828,179.79,179.74,6.0701]
[1734845210279,28.15065256,179.85,179.74,3.2865]
[1734845210476,2.7826,179.81,179.75,2.7834]
[1734845210682,28.15065256,179.85,179.75,2.7834]
[1734845210880,2.7824,179.82,179.74,6.0701]
[1734845211080,28.15065256,179.85,179.74,6.0701]
[1734845212584,24.31065256,179.88,179.74,3.2865]
[1734845212776,29.46858841,179.92,179.76,24.31065256]
[1734845212975,7.3671471,179.91,179.79,24.31065256]
[1734845213177,7.3671471,179.91,179.8,5.4626]
[1734845213984,2.7809,179.92,179.86,2.7817]
[1734845214589,3.84,179.95,179.8,5.4626]
[1734845214785,2.7812,179.9,179.8,5.4626]
[1734845214989,3.84,179.9,179.74,3.2865]
[1734845215287,24.31065256,179.88,179.76,2.7832]
[1734845215483,24.31065256,179.85,179.75,1.6763]
[1734845215687,28.15065256,179.85,179.75,1.6763]
[1734845216790,2.7823,179.82,179.75,4.4596]
[1734845216992,28.15065256,179.85,179.75,4.4596]
[1734845217287,2.7827,179.8,179.75,1.6763]
[1734845217485,2.7827,179.8,179.68,76.35065256]
[1734845217486,28.15065256,179.85,179.68,76.35065256]
[1734845217687,28.15065256,179.85,179.69,7.3168]
[1734845218592,2.7826,179.81,179.71,2.7839]
[1734845218792,28.15065256,179.85,179.71,2.7839]
[1734845218996,28.15065256,179.85,179.69,7.3168]
[1734845219189,28.15065256,179.85,179.71,2.7839]
[1734845219590,24.31065256,179.82,179.69,7.3168]
[1734845219790,2.7836,179.74,179.69,3.4768]
[1734845219993,28.15065256,179.79,179.62,24.31065256]
[1734845220199,24.31065256,179.76,179.6,3.4295]
[1734845220393,24.31065256,179.73,179.6,3.4295]
[1734845220593,3.84,179.72,179.6,3.4295]
[1734845221290,2.7846,179.68,179.6,6.2151]
[1734845221493,3.84,179.72,179.6,1.7462]
[1734845221892,2.7846,179.68,179.6,1.7462]
[1734845222095,3.84,179.72,179.6,1.7462]
[1734845223102,2.7843,179.7,179.63,2.7853]
[1734845223600,28.15065256,179.76,179.64,3.84]
[1734845223895,2.7838,179.73,179.67,2.7846]
[1734845224702,2.7834,179.76,179.65,24.31065256]
[1734845225207,2.7838,179.73,179.64,3.84]
[1734845225791,2.7839,179.72,179.67,2.7846]
[1734845225991,24.31065256,179.79,179.67,2.7846]
[1734845226801,2.7837,179.73,179.67,2.7846]
[1734845226995,24.31065256,179.82,179.65,24.31065256]
[1734845227703,2.783,179.78,179.71,2.7839]
[1734845228200,2.7831,179.77,179.71,2.7839]
[1734845228790,24.31065256,179.82,179.7,3.84]
[1734845230398,24.31065256,179.82,179.71,3.4218]
[1734845230602,24.31065256,179.82,179.71,5.1859]
[1734845231211,24.31065256,179.88,179.71,29.49655256]
[1734845231401,3.84,179.87,179.71,29.49655256]
[1734845231705,2.7823,179.83,179.76,2.7832]
[1734845233003,2.7825,179.81,179.75,6.6234]
[1734845233497,2.7825,179.81,179.75,2.7834]
[1734845233810,28.15065256,179.82,179.72,6.6239]
[1734845234009,3.84,179.81,179.72,6.6239]
[1734845234502,2.783,179.78,179.73,2.7837]
[1734845234707,3.84,179.81,179.72,3.84]
[1734845234906,6.6225,179.81,179.72,3.84]
[1734845235702,6.6225,179.81,179.75,2.7833]
[1734845236607,2.7827,179.8,179.75,2.7833]
[1734845236803,28.15065256,179.85,179.72,3.84]
[1734845238106,28.15065256,179.85,179.75,2.7833]
[1734845238310,28.15065256,179.85,179.72,3.84]
[1734845238701,2.7829,179.79,179.73,2.7837]
[1734845239109,2.7829,179.79,179.72,3.84]
[1734845239306,28.15065256,179.85,179.72,3.84]
[1734845239807,24.31065256,179.85,179.72,3.84]
[1734845240507,2.7825,179.82,179.77,2.783]
[1734845243017,24.31065256,179.85,179.72,3.84]
[1734845243207,2.7829,179.79,179.73,2.7836]
[1734845243820,2.7829,179.79,179.72,3.84]
[1734845244018,2.7829,179.79,179.74,2.7835]
[1734845245121,24.31065256,179.85,179.75,2.7833]
[1734845245823,24.31065256,179.82,179.71,3.4218]
[1734845246017,24.31065256,179.82,179.65,1.6483]
[1734845246018,3.84,179.81,179.66,3.84]
[1734845246220,2.7834,179.75,179.7,2.784]
[1734845246429,4.465,179.81,179.66,3.84]
[1734845247024,2.7832,179.77,179.66,3.84]
[1734845247425,4.465,179.81,179.66,3.84]
[1734845248320,24.31065256,179.79,179.65,4.9876]
[1734845248824,2.7838,179.73,179.65,6.1241]
[1734845249019,24.31065256,179.73,179.59,1.6643]
[1734845249216,24.31065256,179.7,179.59,1.6095]
[1734845249421,2.7853,179.63,179.59,1.6095]
[1734845249624,3.84,179.69,179.59,1.6095]
[1734845249915,2.7834,179.75,179.64,24.31065256]
[1734845250116,3.84,179.78,179.65,5.5043]
[1734845250320,29.46858841,179.75,179.65,5.5043]
[1734845251026,29.46858841,179.75,179.69,2.7842]
[1734845251223,3.84,179.78,179.65,5.5043]
[1734845251428,3.84,179.78,179.7,2.784]
[1734845252018,3.84,179.78,179.65,5.5043]
[1734845252223,3.84,179.78,179.68,2.7844]
[1734845252426,3.84,179.78,179.65,5.5043]
[1734845253431,2.7836,179.74,179.69,2.7843]
[1734845253822,3.84,179.78,179.65,3.84]
[1734845254028,2.7837,179.74,179.68,2.7843]
[1734845254633,3.84,179.78,179.65,3.84]
[1734845255234,2.7836,179.74,179.68,2.7844]
[1734845255627,2.7836,179.74,179.65,3.84]
[1734845255932,24.31065256,179.8,179.65,3.84]
[1734845255933,2.7834,179.76,179.65,3.84]
[1734845256321,2.7834,179.76,179.71,2.784]
[1734845256827,2.7834,179.75,179.69,2.7842]
[1734845257133,3.84,179.79,179.69,2.7842]
[1734845258037,2.7835,179.75,179.7,2.7842]
[1734845258232,2.7835,179.75,179.65,3.84]
[1734845258233,3.84,179.79,179.65,3.84]
[1734845258529,2.7833,179.76,179.71,2.7839]
[1734845258832,3.84,179.79,179.65,3.84]
[1734845259533,3.84,179.79,179.69,2.7842]
[1734845259534,2.7834,179.75,179.69,2.7842]
[1734845260129,2.7834,179.75,179.65,3.84]
[1734845260335,2.7833,179.76,179.65,3.84]
[1734845260535,3.84,179.79,179.65,3.84]
[1734845261834,3.84,179.79,179.6,1.7065]
[1734845261835,24.31065256,179.77,179.61,24.31065256]
[1734845262029,24.31065256,179.74,179.64,2.7851]
[1734845262237,3.84,179.73,179.6,1.7065]
[1734845262434,24.31065256,179.71,179.6,1.7065]
[1734845262628,24.31065256,179.71,179.59,5.4495]
[1734845263232,2.7849,179.66,179.6,2.7856]
[1734845263732,2.7851,179.64,179.59,8.2354]
[1734845264631,2.7851,179.64,179.59,4.3954]
[1734845265145,3.84,179.68,179.52,24.31065256]
[1734845265146,28.15065256,179.68,179.52,24.31065256]
[1734845265333,2.7855,179.62,179.52,28.15065256]
[1734845265531,28.15065256,179.68,179.47,3.4128]
[1734845265732,24.31065256,179.65,179.49,24.31065256]
[1734845265927,3.84,179.67,179.52,24.31065256]
[1734845266127,3.84,179.67,179.53,1.6257]
[1734845266429,3.84,179.67,179.54,3.84]
[1734845267334,2.7851,179.65,179.59,2.7858]
[1734845267527,3.84,179.68,179.54,3.84]
[1734845267730,3.84,179.68,179.55,24.31065256]
[1734845268136,3.84,179.68,179.56,3.3394]
[1734845270136,2.7849,179.66,179.6,2.7857]
[1734845270337,3.84,179.68,179.56,3.3394]
[1734845271431,3.84,179.68,179.58,2.7859]
[1734845271432,2.7853,179.63,179.58,2.7859]
[1734845272541,2.7849,179.65,179.59,2.7857]
[1734845273240,15.00906289,179.61,179.39,93.13348925]
[1734845273542,15.00906289,179.5,179.39,93.13348925]